bitfinex/quotes_ETHUSD_20220120
["timestamp","ask_amount","ask_price","bid_price","bid_amount"]
[1642637133551,0.00113685,3088.5,3088.2,4.0514644]
[1642637133958,0.00113685,3088.5,3088.4,1.10176824]
[1642637134157,0.00113685,3088.5,3088.4,0.3]
[1642637134558,0.00113685,3088.5,3088.2,1.4329544]
[1642637135156,0.00113685,3088.5,3088.2,2.5906888]
[1642637135357,0.00113685,3088.5,3088.2,0.3]
[1642637135563,0.30113685,3088.5,3088.0,0.00170527]
[1642637135957,3.13403433,3088.4,3087.8,0.00284212]
[1642637136155,3.13403433,3088.4,3086.9,3.3031]
[1642637136156,3.13403433,3088.4,3087.6,0.00397896]
[1642637136355,0.30113685,3088.5,3087.5,0.00454739]
[1642637136356,1.10540122,3087.8,3087.5,0.00454739]
[1642637136556,0.80965,3087.8,3087.3,1.41334465]
[1642637136757,0.80962,3088.0,3087.4,0.00511581]
[1642637137002,1.10962,3088.0,3087.5,1.1333461]
[1642637137203,1.10962,3088.0,3087.5,1.4333461]
[1642637137401,1.10962,3088.0,3087.6,0.00397896]
[1642637137603,1.13255815,3087.8,3087.6,0.00397896]
[1642637138002,1.43255815,3087.8,3087.6,0.00397896]
[1642637138207,3.0825057,3087.7,3087.6,0.00397896]
[1642637138403,1.43255815,3087.8,3087.6,0.00397896]
[1642637138604,1.43255815,3087.8,3086.8,0.00852635]
[1642637139005,0.80976,3087.6,3086.9,1.18051723]
[1642637139406,1.10976,3087.6,3087.0,0.00738951]
[1642637139805,0.80976,3087.5,3087.0,0.00738951]
[1642637140007,3.83597196,3087.5,3087.0,0.00738951]
[1642637140210,3.16028059,3087.4,3087.0,0.00738951]
[1642637140404,3.16028059,3087.4,3086.7,7.62]
[1642637140405,3.16028059,3087.4,3086.8,0.00852635]
[1642637140660,1.3,3087.3,3086.8,0.00852635]
[1642637141049,0.80992,3087.1,3086.5,1.53257894]
[1642637141250,2.91985,3087.3,3086.5,2.66630244]
[1642637141251,0.3,3087.3,3086.5,2.66630244]
[1642637141450,0.3,3087.3,3086.6,0.0096632]
[1642637141649,1.6344,3087.8,3086.6,0.0096632]
[1642637141850,1.6344,3087.8,3086.6,0.3096632]
[1642637142055,1.61962,3087.7,3086.6,1.8765628]
[1642637142255,2.74418,3087.8,3086.7,0.00909478]
[1642637142256,0.80979,3087.6,3086.7,0.00909478]
[1642637142455,0.80979,3087.6,3087.0,1.24157127]
[1642637142456,2.30643747,3087.6,3087.0,1.24157127]
[1642637142655,2.60643747,3087.6,3087.0,1.24157127]
[1642637142857,2.60643747,3087.6,3087.1,0.00682108]
[1642637143856,0.80976,3087.5,3087.1,0.00682108]
[1642637144059,1.61956,3087.5,3087.1,0.00682108]
[1642637144498,0.3,3087.3,3087.1,0.00682108]
[1642637145499,0.3,3087.3,3087.1,0.57364648]
[1642637145901,1.10979,3087.3,3087.2,0.00625266]
[1642637146205,0.8098,3087.5,3087.2,0.00625266]
[1642637146402,0.47786019,3087.8,3087.2,0.00625266]
[1642637146604,0.47786019,3087.8,3087.7,1.19275297]
[1642637146805,0.47786019,3087.8,3087.7,1.49275297]
[1642637147008,0.47786019,3087.8,3087.7,1.49616351]
[1642637147207,1.00113685,3088.5,3087.7,1.49616351]
[1642637147408,0.80957,3088.1,3087.7,1.49616351]
[1642637147607,1.10957,3088.1,3087.8,0.00284212]
[1642637147807,0.3,3088.1,3087.8,0.00284212]
[1642637148248,0.3,3088.1,3087.9,0.5666724]
[1642637148447,0.00113685,3088.5,3087.9,0.8666724]
[1642637148850,0.00113685,3088.5,3088.1,0.007336]
[1642637149046,0.00113685,3088.5,3087.9,0.3]
[1642637149248,0.00113685,3088.5,3088.3,1.3451976]
[1642637149447,0.00113685,3088.5,3087.8,1.92156212]
[1642637149647,0.00113685,3088.5,3088.3,0.3]
[1642637149848,0.00113685,3088.5,3088.2,1.1331191]
[1642637150047,0.00113685,3088.5,3088.3,0.3]
[1642637150248,0.00113685,3088.5,3088.3,0.8665695]
[1642637150449,0.00113685,3088.5,3088.3,1.6758495]
[1642637150648,0.00113685,3088.5,3088.3,0.8665695]
[1642637151251,0.00113685,3088.5,3088.1,3.85066529]
[1642637151650,0.00113685,3088.5,3088.1,1.23211529]
[1642637151893,0.00113685,3088.5,3088.1,1.53211529]
[1642637152098,0.00017643,3088.5,3088.1,1.53211529]
[1642637152498,0.00017643,3088.5,3088.2,0.00152884]
[1642637154502,0.00017643,3088.5,3088.1,0.00209727]
[1642637155945,0.00017643,3088.5,3087.7,0.00437096]
[1642637156146,0.00017643,3088.5,3087.6,0.5666216]
[1642637156343,0.00017643,3088.5,3087.7,0.00437096]
[1642637156544,0.00017643,3088.5,3087.7,0.30437096]
[1642637156944,0.00017643,3088.5,3087.8,0.00380254]
[1642637157148,0.00017643,3088.5,3087.8,0.57037754]
[1642637157347,0.00017643,3088.5,3087.9,0.80935]
[1642637157548,0.00017643,3088.5,3087.9,1.11258411]
[1642637157749,0.00017643,3088.5,3088.0,0.00266569]
[1642637158948,0.00017643,3088.5,3088.0,0.5665387]
[1642637159149,0.00017643,3088.5,3088.1,0.80931]
[1642637159401,1.49404084,3088.3,3087.8,1.61863]
[1642637159799,1.49404084,3088.3,3086.9,7.1506]
[1642637159800,0.466,3088.2,3086.7,11.2741]
[1642637160000,0.01243758,3088.0,3087.9,0.00113684]
[1642637160201,0.80971,3088.0,3087.9,0.00113684]
[1642637160599,0.3,3088.0,3087.9,0.00113684]
[1642637160800,5.00553397,3088.0,3087.9,0.00113684]
[1642637161001,5.00553397,3088.0,3086.9,0.00682108]
[1642637161002,0.80971,3087.8,3086.9,0.00682108]
[1642637161201,0.80971,3087.8,3087.4,0.00397896]
[1642637161401,0.80971,3087.8,3086.8,0.0073895]
[1642637161601,0.3,3087.7,3086.9,1.34705579]
[1642637161807,0.46169,3087.7,3086.9,1.34705579]
[1642637162012,0.3,3087.7,3087.0,0.00625266]
[1642637162406,1.26003514,3087.5,3087.1,1.3455819]
[1642637162611,0.3,3087.7,3087.1,1.3455819]
[1642637162612,0.80972,3087.6,3087.1,1.3455819]
[1642637162806,3.23906,3087.7,3087.2,0.00511581]
[1642637163006,0.3,3087.6,3087.2,0.00511581]
[1642637163447,1.3,3087.6,3087.2,0.00511581]
[1642637163648,1.3,3087.6,3087.0,0.00625266]
[1642637164046,2.5,3087.5,3086.9,0.65330845]
[1642637164247,0.00284212,3087.5,3087.1,1.31201915]
[1642637164447,0.0022737,3087.4,3087.1,1.31201915]
[1642637164847,0.00170528,3087.3,3087.1,1.31201915]
[1642637165047,0.00170528,3087.3,3087.1,1.61201915]
[1642637165249,0.1295,3088.7,3087.1,20.43201915]
[1642637165250,0.00113685,3087.2,3087.1,20.43201915]
[1642637165449,0.00033685,3087.2,3087.1,20.39546]
[1642637165647,3.6562567,3088.8,3087.2,4.069989]
[1642637165847,3.6562567,3088.8,3087.4,1.61888]
[1642637166048,0.81685951,3088.5,3087.4,2.38488]
[1642637166247,0.81685951,3088.5,3087.4,0.3]
[1642637166248,0.00738951,3088.5,3087.4,0.3]
[1642637166448,0.00738951,3088.5,3086.9,8.786]
[1642637166449,1.35377852,3087.8,3087.3,2.68061913]
[1642637166648,1.35377852,3087.8,3086.9,7.32]
[1642637166649,1.35377852,3087.8,3086.7,3.7775]
[1642637166898,0.80981,3087.5,3086.0,16.60992]
[1642637167104,0.80981,3087.5,3086.8,0.00227369]
[1642637167307,0.81090685,3087.4,3086.1,2.43990296]
[1642637167503,1.08506826,3087.3,3086.8,2.648345]
[1642637167703,1.08506826,3087.3,3086.9,0.80966]
[1642637167902,0.00113685,3087.4,3086.9,0.81136527]
[1642637168103,0.00113685,3087.4,3087.0,0.00113685]
[1642637168504,0.30113685,3087.4,3086.9,0.00170527]
[1642637168703,0.30113685,3087.4,3086.9,1.00170527]
[1642637168704,0.00113685,3087.4,3086.9,1.00170527]
[1642637168903,0.00113685,3087.4,3087.0,0.80967]
[1642637169104,0.00113685,3087.4,3087.0,1.11080685]
[1642637169302,0.00113685,3087.4,3087.0,2.24418155]
[1642637170404,0.00113685,3087.4,3087.0,3.05371155]
[1642637170652,0.00113685,3087.4,3087.1,0.80952]
[1642637171945,0.00113685,3087.4,3087.1,1.3761851]
[1642637172349,0.00113685,3087.4,3087.3,4.00953]
[1642637172850,0.00113685,3087.4,3087.3,6.28800254]
[1642637175001,0.00113685,3087.4,3087.3,3.08800254]
[1642637175402,0.00113685,3087.4,3087.3,2.27847254]
[1642637175603,0.00113685,3087.4,3087.3,1.13056278]
[1642637176802,0.00113685,3087.4,3087.3,1.43056278]
[1642637177605,0.00113685,3087.4,3087.3,2.94804793]
[1642637178007,0.00113685,3087.4,3087.3,3.94804793]
[1642637178666,0.00113685,3087.4,3087.3,7.14804793]
[1642637179267,0.00113685,3087.4,3087.3,7.27754793]
[1642637179666,0.00113685,3087.4,3087.3,9.73843237]
[1642637179965,0.00113685,3087.4,3087.3,7.80443237]
[1642637181464,0.00113685,3087.4,3087.3,4.60443237]
[1642637181665,0.00113685,3087.4,3087.3,3.60443237]
[1642637181902,0.00113685,3087.4,3087.3,3.41404793]
[1642637182505,0.00113685,3087.4,3087.3,1.81748515]
[1642637182709,0.00113685,3087.4,3087.0,0.00113685]
[1642637183307,0.00113685,3087.4,3086.5,0.00397896]
[1642637183508,0.00113685,3087.4,3086.3,0.00511581]
[1642637183807,1.33696946,3087.3,3086.7,1.129916]
[1642637184007,1.63696946,3087.3,3086.7,1.129916]
[1642637184409,0.3,3087.3,3086.7,1.129916]
[1642637185009,0.00113685,3087.4,3086.7,2.587488]
[1642637185209,0.00113685,3087.4,3086.7,1.129916]
[1642637185751,0.00113685,3087.4,3087.2,1.43293191]
[1642637185948,0.00113685,3087.4,3087.3,1.25390158]
[1642637186650,0.00113685,3087.4,3087.3,5.75390158]
[1642637186852,0.00113685,3087.4,3087.3,4.75390158]
[1642637187050,0.00113685,3087.4,3087.3,5.75390158]
[1642637187449,0.00026289,3087.4,3087.3,1.3]
[1642637188253,0.00026289,3087.4,3087.1,0.1295]
[1642637188450,0.00026289,3087.4,3087.3,0.3]
[1642637188651,0.00026289,3087.4,3087.2,1.14480554]
[1642637189051,0.00026289,3087.4,3087.2,1.14393158]
[1642637189496,0.00026289,3087.4,3087.1,0.00144238]
[1642637190196,0.00026289,3087.4,3087.0,0.00201081]
[1642637190396,0.00026289,3087.4,3087.3,1.12657755]
[1642637190598,0.00026289,3087.4,3087.0,0.00201081]
[1642637191002,0.00026289,3087.4,3087.0,0.64974051]
[1642637191203,0.00026289,3087.4,3087.1,0.80967]
[1642637191401,0.00026289,3087.4,3087.1,2.10643018]
[1642637191602,0.00026289,3087.4,3087.2,0.00087396]
[1642637191805,0.00026289,3087.4,3085.7,0.10000524]
[1642637191806,5.61287431,3087.3,3085.7,0.10000524]
[1642637192010,0.01249803,3086.4,3085.7,0.10000524]
[1642637192205,0.00026289,3087.4,3085.9,1.53218482]
[1642637192404,0.00026289,3087.4,3086.9,1.09712063]
[1642637192803,0.81009289,3087.4,3087.0,0.00113685]
[1642637193256,0.00026289,3087.4,3087.3,1.14307469]
[1642637193463,0.00026289,3087.4,3087.0,0.00113685]
[1642637194560,0.00026289,3087.4,3087.1,1.46897197]
[1642637194760,0.00026289,3087.4,3087.1,2.30827197]
[1642637194960,0.00026289,3087.4,3087.1,1.1393]
[1642637195159,0.00026289,3087.4,3087.1,0.8393]
[1642637195364,0.00026289,3087.4,3087.1,1.1393]
[1642637195965,0.00026289,3087.4,3087.1,0.3]
[1642637196162,0.00026289,3087.4,3087.0,0.00113685]
[1642637197335,1.10964,3088.0,3087.0,0.00113685]
[1642637197537,0.80961,3088.2,3087.0,0.00113685]
[1642637197739,0.00397897,3087.9,3087.0,0.00113685]
[1642637197937,0.00397897,3087.9,3087.1,0.466]
[1642637198136,3.9551,3088.7,3087.4,18.82]
[1642637198137,0.00341054,3087.8,3087.4,18.82]
[1642637198335,0.00341054,3087.8,3087.5,3.32729186]
[1642637198540,0.00284212,3087.7,3087.6,6.19992758]
[1642637198936,0.00284212,3087.7,3087.6,7.19992758]
[1642637199137,0.00284212,3087.7,3087.6,3.99992758]
[1642637199536,0.00284212,3087.7,3087.6,6.89992758]
[1642637199737,0.00284212,3087.7,3087.6,3.99992758]
[1642637199936,0.00284212,3087.7,3087.6,6.98163488]
[1642637201260,0.00284212,3087.7,3087.6,25.80163488]
[1642637201658,1.1631,3088.9,3088.8,1.39764426]
[1642637201858,1.1631,3088.9,3088.1,0.5665053]
[1642637201859,0.3,3088.9,3088.1,0.5665053]
[1642637202057,1.0,3089.2,3088.1,0.3]
[1642637202058,0.00625266,3088.8,3088.1,0.3]
[1642637202459,2.04642,3089.3,3088.2,3.31531113]
[1642637202460,0.00568423,3088.7,3088.2,3.31531113]
[1642637202760,0.00511581,3088.6,3088.4,0.80921]
[1642637202957,0.00511581,3088.6,3088.4,3.82099079]
[1642637203157,1.2319,3089.8,3088.4,3.82099079]
[1642637203158,1.54491527,3089.7,3088.5,8.77154992]
[1642637203359,1.2319,3089.8,3088.5,6.78650266]
[1642637203558,1.2319,3089.8,3088.6,1.0]
[1642637203559,0.01023162,3089.5,3088.6,1.0]
[1642637203958,0.0096632,3089.4,3088.6,1.3]
[1642637204398,1.2319,3089.8,3088.6,1.3]
[1642637204399,0.00909477,3089.3,3088.6,1.3]
[1642637204701,0.00852635,3089.2,3088.7,0.5663903]
[1642637205101,0.00795793,3089.1,3088.8,0.3]
[1642637205503,1.2319,3089.8,3088.9,3.2]
[1642637205504,0.0073895,3089.0,3088.9,3.2]
[1642637205701,0.0073895,3089.0,3088.9,4.40030135]
[1642637205902,0.0073895,3089.0,3088.9,5.70030135]
[1642637207405,0.0073895,3089.0,3088.9,8.10030135]
[1642637208271,0.0073895,3089.0,3088.9,5.70030135]
[1642637208866,0.0073895,3089.0,3088.7,0.3]
[1642637209063,0.0073895,3089.0,3088.5,1.77895615]
[1642637209263,0.00682108,3088.9,3088.5,1.47895615]
[1642637209663,0.00625266,3088.8,3088.5,1.47895615]
[1642637209862,0.00625266,3088.8,3088.7,1.09169433]
[1642637210063,1.84024244,3089.4,3088.7,1.09169433]
[1642637210463,0.00909477,3089.3,3088.7,1.09169433]
[1642637210663,0.00909477,3089.3,3088.7,1.39169433]
[1642637210863,0.00852635,3089.2,3088.7,1.39169433]
[1642637211263,0.00795793,3089.1,3088.7,1.39169433]
[1642637211662,0.0073895,3089.0,3088.7,1.39169433]
[1642637212107,0.00682108,3088.9,3088.7,1.39169433]
[1642637212311,0.00682108,3088.9,3088.7,0.3]
[1642637212509,1.38583403,3089.5,3088.6,0.3]
[1642637212510,0.00625266,3088.8,3088.6,0.3]
[1642637212908,0.00568423,3088.7,3088.5,1.77895615]
[1642637213308,0.00511581,3088.6,3088.5,1.77895615]
[1642637213708,0.00511581,3088.6,3088.5,3.03694096]
[1642637215649,0.00511581,3088.6,3088.5,4.03694096]
[1642637215851,0.00511581,3088.6,3088.5,3.03694096]
[1642637216051,0.00511581,3088.6,3088.5,4.03694096]
[1642637216250,0.00511581,3088.6,3088.5,3.03694096]
[1642637216451,0.00511581,3088.6,3088.5,4.03694096]
[1642637216856,0.00511581,3088.6,3088.5,3.03694096]
[1642637217058,0.00511581,3088.6,3088.5,4.03694096]
[1642637217256,0.00511581,3088.6,3088.5,6.59610096]
[1642637217459,0.00511581,3088.6,3088.5,7.59610096]
[1642637217657,0.00511581,3088.6,3088.5,4.03694096]
[1642637219060,0.00511581,3088.6,3088.5,1.47895615]
[1642637219713,0.00511581,3088.6,3087.3,3.7907]
[1642637219913,0.01500589,3088.5,3087.3,3.7686]
[1642637220115,0.00454739,3088.5,3087.3,5.38743]
[1642637220316,1.29630484,3088.4,3087.8,1.25563789]
[1642637220516,1.59630484,3088.4,3087.8,1.25563789]
[1642637220716,0.00341054,3088.3,3087.9,1.22194588]
[1642637221118,0.00284212,3088.2,3087.9,1.22194588]
[1642637221524,0.8095363,3089.0,3087.9,1.22194588]
[1642637221525,0.00227369,3088.1,3087.9,1.22194588]
[1642637221718,0.00141552,3088.1,3087.9,1.22194588]
[1642637221919,0.80954,3088.8,3087.9,1.22194588]
[1642637221920,0.0008471,3088.0,3087.9,1.22194588]
[1642637223559,0.0008471,3088.0,3087.4,0.00170527]
[1642637223958,0.0008471,3088.0,3087.2,0.00370029]
[1642637224159,0.0008471,3088.0,3086.9,0.00540556]
[1642637224356,0.0008471,3088.0,3086.8,0.00597398]
[1642637224560,0.0008471,3088.0,3087.7,1.26031809]
[1642637227907,1.15031402,3088.0,3087.7,1.26031809]
[1642637228106,0.0008471,3088.0,3087.7,1.26031809]
[1642637230509,0.1295,3089.1,3087.8,3.2]
[1642637230755,0.1295,3089.1,3088.0,19.62924]
[1642637230954,0.1295,3089.1,3088.1,0.766]
[1642637230955,0.00170527,3088.3,3088.1,0.766]
[1642637231155,0.00170527,3088.3,3088.1,2.63601026]
[1642637231352,0.1295,3089.1,3088.2,8.36201053]
[1642637231552,0.1295,3089.1,3089.0,1.13974971]
[1642637231753,1.53517158,3089.6,3089.0,1.13974971]
[1642637232155,0.00852635,3089.5,3089.0,1.13974971]
[1642637232556,0.00795793,3089.4,3089.0,1.13974971]
[1642637232757,0.00795793,3089.4,3089.1,1.08945576]
[1642637232957,0.0073895,3089.3,3089.1,1.08945576]
[1642637233358,0.00682108,3089.2,3089.1,2.19858576]
[1642637233558,0.00682108,3089.2,3089.1,6.79339735]
[1642637234805,0.00682108,3089.2,3089.1,6.62159735]
[1642637235205,0.00682108,3089.2,3089.1,9.27159735]
[1642637236306,0.00682108,3089.2,3089.1,6.88889735]
[1642637238554,0.00682108,3089.2,3089.1,25.70889735]
[1642637240463,1.1821,3090.5,3089.1,25.70889735]
[1642637240659,1.1821,3090.5,3089.8,0.80886]
[1642637240860,0.00682108,3090.4,3089.8,0.80886]
[1642637241160,0.00625266,3090.3,3089.8,0.3]
[1642637241362,0.25625266,3090.6,3089.8,3.5]
[1642637241561,0.00568424,3090.2,3089.9,1.00227369]
[1642637241762,0.00568424,3090.2,3090.0,1.28934573]
[1642637242007,0.00284212,3090.8,3090.5,1.20282693]
[1642637242207,0.00284212,3090.8,3090.6,1.22749043]
[1642637242405,1.15542221,3091.0,3090.6,1.22749043]
[1642637242406,0.00227369,3090.7,3090.6,1.22749043]
[1642637242605,0.38061165,3090.7,3090.6,1.22749043]
[1642637243813,0.00227369,3090.7,3090.6,1.22749043]
[1642637251514,0.00227369,3090.7,3090.1,0.00113685]
[1642637251915,0.00170527,3090.6,3090.0,0.00170527]
[1642637252314,1.6178993,3091.2,3090.0,0.00170527]
[1642637252315,0.00113685,3090.5,3090.0,0.00170527]
[1642637252714,0.30454739,3091.1,3090.1,1.43042877]
[1642637252914,0.30454739,3091.1,3090.6,1.17508988]
[1642637252915,0.80894,3090.9,3090.6,1.17508988]
[1642637253355,0.00284212,3090.8,3090.6,1.17508988]
[1642637253655,0.00227369,3090.7,3090.6,1.17508988]
[1642637254055,0.00227369,3090.7,3090.6,2.66975715]
[1642637258320,0.00227369,3090.7,3090.6,2.96975715]
[1642637258516,0.00227369,3090.7,3090.6,3.96975715]
[1642637261356,0.00227369,3090.7,3090.6,2.66975715]
[1642637261756,0.00227369,3090.7,3090.6,5.31975715]
[1642637262561,0.00227369,3090.7,3090.6,6.61975715]
[1642637263060,0.0012686,3090.7,3090.6,3.96975715]
[1642637268664,0.0012686,3090.7,3090.6,2.66975715]
[1642637275318,0.0012686,3090.7,3090.6,3.66975715]
[1642637276154,0.0012686,3090.7,3090.6,3.96975715]
[1642637276958,0.0012686,3090.7,3090.6,4.26975715]
[1642637277159,0.0012686,3090.7,3090.6,3.6377]
[1642637277160,6.86e-05,3090.7,3090.6,3.6377]
[1642637277358,2.75252279,3091.9,3091.4,0.80846]
[1642637277559,1.23885917,3092.3,3091.4,1.80846]
[1642637277860,0.00682108,3091.9,3091.4,1.80846]
[1642637278059,0.00682108,3091.9,3091.4,2.10841]
[1642637278261,0.00625266,3091.8,3091.6,1.85633808]
[1642637278460,0.00625266,3091.8,3091.7,4.0084]
[1642637278660,0.37607587,3092.2,3091.7,4.0084]
[1642637278861,0.37607587,3092.2,3091.7,5.0084]
[1642637279065,0.00795793,3092.1,3091.8,1.0]
[1642637279509,0.00738951,3092.0,3091.9,4.00841]
[1642637279912,0.00738951,3092.0,3091.9,5.00841]
[1642637281312,0.00738951,3092.0,3091.9,0.80841]
[1642637281510,0.00738951,3092.0,3091.6,1.29045358]
[1642637281511,0.00738951,3092.0,3091.7,0.80849]
[1642637281912,0.00682108,3091.9,3091.7,0.80849]
[1642637282115,0.00682108,3091.9,3091.7,0.80754728]
[1642637282315,0.00625266,3091.8,3091.7,0.80754728]
[1642637283656,0.00625266,3091.8,3091.7,3.60754728]
[1642637284059,0.1293,3093.8,3091.8,24.60820521]
[1642637284261,5.47700175,3094.3,3091.8,24.60820521]
[1642637284262,2.75102777,3093.7,3092.7,0.01265105]
[1642637284459,0.00568424,3092.8,3092.7,0.81725105]
[1642637284658,0.00568424,3092.8,3092.7,4.8206]
[1642637284857,0.01364216,3094.2,3092.7,26.05283085]
[1642637285057,0.01364216,3094.2,3093.0,0.80797]
[1642637285257,0.01307374,3094.1,3093.0,1.27397]
[1642637285457,0.01307374,3094.1,3093.0,1.57397]
[1642637285659,0.01250532,3094.0,3093.0,2.57397]
[1642637285857,0.01250532,3094.0,3093.1,0.80798]
[1642637286060,7.95043253,3094.3,3092.8,4.266]
[1642637286061,1.37217176,3093.4,3092.8,3.266]
[1642637286259,1.37217176,3093.4,3092.4,1.0]
[1642637286459,0.0076083,3093.3,3092.4,0.3]
[1642637286660,0.0076083,3093.3,3092.2,3.9415]
[1642637286924,0.00703988,3093.2,3092.4,0.5657323]
[1642637287124,0.00703988,3093.2,3092.5,1.51828588]
[1642637287323,0.00647146,3093.1,3092.6,1.54227865]
[1642637287824,0.00590303,3093.0,3092.6,1.84227865]
[1642637288025,0.00590303,3093.0,3092.6,3.65054865]
[1642637288225,0.00533461,3092.9,3092.6,3.65054865]
[1642637288725,0.00476619,3092.8,3092.6,3.65054865]
[1642637289124,0.01222377,3093.6,3092.6,3.65054865]
[1642637289125,0.00419776,3092.7,3092.6,3.65054865]
[1642637289529,0.00419776,3092.7,3092.6,6.65054865]
[1642637289726,0.00419776,3092.7,3092.6,3.65054865]
[1642637290872,7.6378,3094.3,3092.7,3.25]
[1642637291075,5.60373069,3094.7,3093.1,0.80799]
[1642637291274,0.00454739,3093.5,3093.2,3.79222636]
[1642637291474,0.00454739,3093.5,3093.2,4.09222636]
[1642637291674,0.00397897,3093.4,3093.3,1.0]
[1642637291875,0.00397897,3093.4,3093.3,5.14767821]
[1642637293077,0.00397897,3093.4,3093.3,5.95568821]
[1642637294281,5.55770966,3094.7,3093.7,0.5655382]
[1642637294506,1.4575,3094.7,3093.9,0.80792]
[1642637294711,0.00682108,3094.6,3093.9,0.80792]
[1642637295107,0.00625265,3094.5,3093.9,0.80792]
[1642637295507,1.0,3095.1,3093.7,1.0]
[1642637295508,1.41844251,3094.7,3094.4,1.32893115]
[1642637296309,0.3,3094.7,3094.4,1.32893115]
[1642637296508,0.00909477,3095.0,3094.4,1.32893115]
[1642637296709,2.75031369,3094.9,3094.4,1.32893115]
[1642637296910,0.30852635,3094.9,3094.4,1.32893115]
[1642637297112,0.00795792,3094.8,3094.4,1.32893115]
[1642637297512,0.0073895,3094.7,3094.4,1.32893115]
[1642637297914,1.10789,3095.2,3094.4,1.32893115]
[1642637297915,0.00682108,3094.6,3094.4,1.32893115]
[1642637298179,0.00682108,3094.6,3094.4,1.62893115]
[1642637298367,3.71418478,3095.4,3094.4,1.62893115]
[1642637298368,0.00625265,3094.5,3094.4,1.62893115]
[1642637300371,0.00625265,3094.5,3094.4,4.60380629]
[1642637300975,0.00625265,3094.5,3094.4,1.62893115]
[1642637301372,0.00625265,3094.5,3094.4,4.62893115]
[1642637301573,3.7021,3095.4,3094.4,4.62893115]
[1642637301574,3.7021,3095.4,3094.5,3.25]
[1642637301913,0.00454739,3095.3,3094.7,0.80769]
[1642637302116,0.00454739,3095.3,3094.7,1.10769]
[1642637302315,0.00397897,3095.2,3094.7,1.10769]
[1642637302717,0.00341055,3095.1,3094.7,0.80769]
[1642637302918,0.00341055,3095.1,3094.0,3.1853]
[1642637303120,0.00284212,3095.0,3094.0,3.1853]
[1642637303318,0.00284212,3095.0,3094.1,0.00227369]
[1642637303515,0.01269247,3095.2,3094.1,0.00227369]
[1642637303516,0.0022737,3094.9,3094.1,0.00227369]
[1642637303917,0.00170527,3094.8,3094.4,1.19322582]
[1642637304316,0.00113685,3094.7,3094.4,1.19322582]
[1642637304516,0.00113685,3094.7,3094.4,1.49322582]
[1642637304717,0.00284212,3095.0,3094.4,1.49322582]
[1642637304920,1.13533764,3094.7,3094.4,1.19322582]
[1642637305853,0.0022737,3094.9,3094.4,1.19322582]
[1642637306252,0.00170527,3094.8,3094.1,0.00227369]
[1642637306653,0.01269247,3095.2,3094.1,0.00227369]
[1642637306654,0.00113685,3094.7,3094.1,0.00227369]
[1642637306853,0.00113685,3094.7,3093.8,0.00397896]
[1642637307058,1.0,3095.0,3093.7,0.00454738]
[1642637307257,0.16510055,3095.1,3093.7,0.00454738]
[1642637307456,0.0022737,3094.9,3093.7,0.00454738]
[1642637307660,1.40748572,3094.4,3094.1,1.1180577]
[1642637307857,1.40748572,3094.4,3093.7,0.00454738]
[1642637308057,1.70748572,3094.4,3094.2,0.00170527]
[1642637308260,1.70748572,3094.4,3093.7,0.00454738]
[1642637308458,1.70748572,3094.4,3093.4,0.00625265]
[1642637309259,0.00170527,3094.8,3094.0,1.27766177]
[1642637309508,0.00170527,3094.8,3094.0,1.57766177]
[1642637309709,3.7669,3095.1,3094.0,1.57766177]
[1642637309710,0.00113685,3094.7,3094.0,1.57766177]
[1642637310007,0.80799,3094.8,3094.0,1.57766177]
[1642637310210,0.80799,3094.8,3094.0,1.27766177]
[1642637310410,1.3353025,3094.3,3093.8,1.32291862]
[1642637310608,1.6353025,3094.3,3093.8,1.32291862]
[1642637310808,0.00113685,3094.7,3093.9,0.00341054]
[1642637311611,0.00113685,3094.7,3094.1,1.15567209]
[1642637311907,2.04310351,3094.5,3094.2,0.00170527]
[1642637312112,0.3,3094.4,3094.2,0.00170527]
[1642637312310,0.3,3094.4,3093.9,0.00341054]
[1642637312714,2.04310351,3094.5,3093.9,0.00341054]
[1642637312911,0.3,3094.4,3093.9,0.00341054]
[1642637313157,0.80811,3094.3,3093.9,0.00341054]
[1642637313357,0.80811,3094.3,3093.2,3.90937]
[1642637313358,0.80811,3094.3,3093.5,0.00568423]
[1642637313557,0.80811,3094.3,3093.3,0.00682108]
[1642637313558,0.3,3094.2,3093.3,0.00682108]
[1642637314160,0.3,3094.4,3093.3,0.00682108]
[1642637314357,0.3,3094.4,3093.1,2.41357361]
[1642637314358,0.3,3094.4,3093.2,0.0073895]
[1642637314558,0.3,3094.4,3093.5,1.45616419]
[1642637314959,1.6163543,3094.3,3093.6,0.00511581]
[1642637315160,1.10815,3094.2,3093.6,0.00511581]
[1642637315562,2.10815,3094.2,3093.6,0.00511581]
[1642637315760,2.40815,3094.2,3093.6,0.00511581]
[1642637315960,3.21636,3094.2,3093.6,0.00511581]
[1642637316167,1.10815,3094.2,3093.6,0.00511581]
[1642637317028,0.3,3094.2,3093.6,0.00511581]
[1642637317227,0.3,3094.3,3093.6,0.00511581]
[1642637317825,1.16169,3094.4,3093.6,0.00511581]
[1642637317826,1.46169,3094.4,3093.6,0.00511581]
[1642637319627,0.8081,3094.3,3093.6,0.00511581]
[1642637320429,1.23505351,3094.5,3093.6,0.00511581]
[1642637321057,1.53505351,3094.5,3093.6,0.00511581]
[1642637321657,2.34308351,3094.5,3093.6,0.00511581]
[1642637322061,2.34219051,3094.5,3093.6,0.00511581]
[1642637322460,3.15030051,3094.5,3093.6,0.00511581]
[1642637322659,2.34227051,3094.5,3093.6,0.00511581]
[1642637323062,0.80809,3094.3,3093.6,0.00511581]
[1642637324608,0.3,3094.2,3093.6,0.00511581]
[1642637325209,1.23505351,3094.5,3093.6,0.00511581]
[1642637325509,2.74451685,3094.7,3093.6,0.81311581]
[1642637325510,3.05011659,3094.4,3093.6,0.81311581]
[1642637325710,1.42833685,3094.7,3093.6,0.81311581]
[1642637325912,1.42833685,3094.7,3093.7,0.00454738]
[1642637325913,2.75002677,3094.6,3093.7,0.00454738]
[1642637326311,1.11345318,3094.5,3093.7,0.00454738]
[1642637326511,2.75002677,3094.4,3093.7,0.00454738]
[1642637326911,3.05002677,3094.4,3093.6,0.00511581]
[1642637327115,2.75002677,3094.3,3093.6,0.00511581]
[1642637327515,1.41345318,3094.5,3094.1,1.4199077]
[1642637327715,2.75010208,3094.4,3094.1,1.4199077]
[1642637327916,3.05010208,3094.4,3094.2,0.00170527]
[1642637328155,2.75010208,3094.3,3094.2,0.00170527]
[1642637328560,3.05010208,3094.3,3094.2,0.00170527]
[1642637329658,3.05010208,3094.3,3093.6,0.00511581]
[1642637329858,2.75010208,3094.2,3093.6,0.00511581]
[1642637331062,2.75010208,3094.2,3093.7,1.47655722]
[1642637331459,2.75010208,3094.2,3093.8,0.00397896]